Workbook

Sheet Sheet1
B3: File tax return showing tax of $10,000 | E3: Filed on April 15
C5: April | D5: May | E5: June | F5: July | G5: August | H5: September | I5: October | J5: November | K5: December | L5: January | M5: February
B6: Penalties & Interest | D6: =C9*0.0111666666666667 -> 111.6666667 | E6: =D9*0.0111666666666667 -> 112.9136111 | F6: 114.1744798 | G6: 115.4494281 | H6: 116.7386134 | I6: 118.0421946 | J6: =I9*0.0111666666666667 -> 119.3603012 | K6: =J9*0.0111666666666667 -> 120.6931579 | L6: 122.0408981 | M6: 123.4036882
B7: Accrued | D7: =SUM(D6:D6) -> 111.6666667 | E7: =SUM(D7,E6) -> 224.5802778 | F7: =SUM(E7,F6) -> 338.7547575 | G7: 454.2041857 | H7: 570.9427991 | I7: =I6 -> 118.0421946 | J7: 237.4024958 | K7: =SUM(J7,K6) -> 358.0956536 | L7: =SUM(K7,L6) -> 480.1365518 | M7: =SUM(L7,M6) -> 603.5402399
B8: Assessed | C8: 10000 | D8: 10000 | E8: 10000 | F8: 10000 | G8: 10000 | H8: 10000 | I8: 10570.94 | J8: 10570.94 | K8: 10570.94 | L8: 10570.94 | M8: 10570.94
B9: Balance Due | C9: 10000 | D9: =SUM(D7:D8) -> 10111.66667 | E9: =SUM(E7:E8) -> 10224.58028 | F9: 10338.75476 | G9: 10454.20419 | H9: 10570.9428 | I9: 10688.98219 | J9: =SUM(J7:J8) -> 10808.3425 | K9: =SUM(K7:K8) -> 10929.03565 | L9: =SUM(L7:L8) -> 11051.07655 | M9: =SUM(M7:M8) -> 11174.48024
B16: Tax assessed changes every 6 months.
B17: Tax accrued changes monthly
B18: Balance is due total of assessed + accrued
B20: Tax is not assessed or totaled constantly. It is periodical.
B21: Tax accrued is the total increase since the last assessment.
B22: Balance due is the total of accrued & assessed.
B23: For example, if the IRS assessed the total every 6 months, at the end of the 1st 6 mos., you would owe the tax plus the total accruals to date. In 3 more months you would owe the assessed plus an additional 3 months of penalties & interest. The accrued total will only show 3 months of penalties & interest, assessed will be the total from 3 monthws ago, and your balance due would be the total of them both.
